Cogmind - Beta 17 @@@ ROGUE MODE // 2026.08.14 @ 09:12:19 Player: TheSkyeDoctor Result: Destroyed by G-34 Mercenary with Small Laser Performance ------------- Evolutions (0) 0 Regions Visited (1) 200 Robots Destroyed (21) 105 Value Destroyed (412) 412 Prototype IDs (0) 0 Alien Tech Used (0) 0 Bonus (0) 0 TOTAL SCORE: 717 Bonus ------- None Cogmind --------- Core Integrity 0/250 Matter 279/300 Energy 82/100 System Corruption 0% Temperature Cool (31) Movement Core (350) Ox6 Location -10/Materials Parts ------- > --- POWER (1) -------- (None) > --- PROPULSION (2) --- (None) > --- UTILITY (2) ------ Large Storage Unit Visual Processing Unit > --- WEAPON (2) ------- Small Laser > --- INVENTORY (15) --- Wheel Improved Heat Sink Large Matter Pod (11) Improved Terrain Scanner Terrain Scan Processor Datajack Mace Peak State ------------ > --- POWER ------------ Light Ion Engine > --- PROPULSION ------- Light Treads Light Treads > --- UTILITY ---------- Small Storage Unit Seismic Detector > --- WEAPON ----------- Small Laser Light Assault Rifle > --- INVENTORY -------- Ion Engine Wheel Improved Heat Sink Improved Terrain Scanner Grenade Launcher Datajack [Rating: 8] Favorites ----------- Power Light Ion Engine Engine Light Ion Engine Propulsion Light Treads Treads Light Treads Utility Small Storage Unit Device Seismic Detector Storage Small Storage Unit Processor Visual Processing Unit Weapon Light Assault Rifle Energy Gun Small Laser Ballistic Gun Light Assault Rifle Launcher Grenade Launcher Build | -11 -10 ------- Run | Yrd Mat Slots Evolved . | . . Power . | . . Propulsion . | . . Utility . | . . Weapon . | . . Parts Attached 15 | 7 8 Power 3 | 1 2 Engine 3 | 1 2 Core . | . . Reactor . | . . Propulsion 3 | 2 1 Treads 3 | 2 1 Leg . | . . Wheel . | . . Hover . | . . Flight . | . . Utility 4 | 2 2 Device 1 | 1 . Storage 2 | 1 1 Processor 1 | . 1 Hackware . | . . Protection . | . . Artifact . | . . Weapon 5 | 2 3 Energy Gun 3 | 1 2 Energy Cannon . | . . Ballistic Gun 1 | 1 . Ballistic Cannon . | . . Launcher 1 | . 1 Special Weapon . | . . Impact Weapon . | . . Slashing Weapon . | . . Piercing Weapon . | . . Special Melee Weapon . | . . Unidentified Prototypes . | . . Parts Lost 11 | . 11 Power 3 | . 3 Propulsion 3 | . 3 Utility 1 | . 1 Weapon 4 | . 4 Highest Loss Streak 6 | . 6 To Critical Strikes . | . . Average Backups 3 | 1 5 Power . | . . Propulsion . | . 1 Utility 1 | . 2 Weapon . | . . Tool/Special . | . . Unused Backups 8 | 1 7 Power . | . . Propulsion 2 | 1 1 Utility 4 | . 4 Weapon 1 | . 1 Tool/Special 1 | . 1 Average Slot Usage (%) 91 | . 91 Engine 12 | . 12 Treads 23 | . 23 Device 9 | . 9 Storage 14 | . 14 Processor 4 | . 4 Energy Gun 11 | . 11 Ballistic Gun 13 | . 13 Peak Build Rating 8 | 7 8 Average Rating 6 | 6 7 On Entrance 3 | . 7 Avg Prop Armor Cover (%) . | . . Naked Turns . | . . Heaviest Build 27 | 11 27 Greatest Support 40 | 40 40 Greatest Overweight (x) 6 | . 6 Average Overweight (x) . | . . Largest Inventory Capacity 15 | 8 15 Average Capacity 8 | 7 8 Most Carried 8 | 3 8 Average Carried 3 | 1 5 Final Capacity 15 | 8 15 Final Carried 7 | 3 7 Class Distribution -------------------- 100% | Mutant Dominant Class ---------------- Mutant | -10/Materials Resources | -11 -10 ----------- Run | Yrd Mat Matter Collected 410 | 297 113 Remotely . | . . Salvage Created 715 | 258 457 Parts 39 | 16 23 Haulers Intercepted 2 | . 2 Recyclers Shooed 1 | 1 . Parts Field Recycled . | . . Retrieved Matter . | . . Parts Self-Destructed . | . . Prevented . | . . Parts Restored . | . . Kills | -11 -10 ------- Run | Yrd Mat Combat Hostiles Destroyed 8 | . 8 Guns 6 | . 6 AOE 2 | . 2 Classes Destroyed 6 | 3 3 Worker 1 | 1 . Builder 1 | . 1 Tunneler 7 | 7 . Hauler 2 | . 2 Recycler 2 | 1 1 Grunt 8 | . 8 Best Kill Streak 7 | 2 7 Combat Bots Only 4 | . 4 Max Kills in Single Turn 2 | 1 2 Gunslinging . | . . Exploded 2 | . 2 Melee . | . . Uniques/NPCs Destroyed . | . . Combat | -11 -10 -------- Run | Yrd Mat Hostile Shots Fired 112 | . 112 Missed 23 | . 23 Hits 89 | . 89 Projectile 89 | . 89 Damage Taken 1160 | . 1160 Core 256 | . 256 Absorbed by Shields . | . . Core Remaining (%) 100 | 100 . Volleys Fired 77 | 27 50 Largest 2 | 2 2 Hottest 60 | 60 60 Shots Fired 142 | 54 88 Gun 137 | 54 83 Cannon . | . . Launcher 5 | . 5 Special . | . . Kinetic 76 | 27 49 Thermal 61 | 27 34 Explosive 5 | . 5 Electromagnetic . | . . Robot Hit Streak 10 | 5 10 Robot Miss Streak 4 | 3 4 Penetration Max . | . . Secondary Targets . | . . Shots Hit Robots 86 | 32 54 Core Hits 45 | 13 32 Critical Kills . | . . Critical Parts Destroyed 1 | . 1 Critical Strikes 1 | . 1 Destroy 1 | . 1 Melee Attacks . | . . Impact . | . . Slashing . | . . Piercing . | . . Sneak Attacks . | . . Combat Hostiles . | . . Follow-up Attacks . | . . Damage Inflicted 1162 | 295 867 Guns 814 | 295 519 Cannons . | . . Explosions 348 | . 348 Melee . | . . Ramming . | . . Kinetic 350 | 107 243 Thermal 464 | 188 276 Explosive 348 | . 348 Electromagnetic . | . . Impact . | . . Slashing . | . . Piercing . | . . Highest Corruption . | . . Average Corruption . | . . Corruption Purged . | . . Corruption Blocked . | . . Overload Shots . | . . Overflow Damage 27 | . 27 Projectiles . | . . Explosions 27 | . 27 Melee . | . . Knockbacks . | . . Impact . | . . Kinetic . | . . Secondary . | . . Self-Inflicted Damage 75 | . 75 Shots 1 | . 1 Rammed 1 | . 1 Targets Rammed 1 | . 1 Kicked . | . . Crushed . | . . Highest Temperature 175 | 40 175 Average Temperature 38 | 18 48 Received Heat Transfer 615 | . 615 Siege Activations . | . . Martial Activations . | . . Shielding Activations . | . . Robots Disrupted . | . . Combat Hostiles . | . . Robots Corrupted . | . . Combat Hostiles . | . . Parts Fried . | . . Impact Corruptions . | . . Robots Melted . | . . Combat Hostiles . | . . Parts Melted . | . . Heat Transferred 1050 | 425 625 Parts Sabotaged . | . . Parts Stolen . | . . Parts Stripped . | . . Power Chain Reactions . | . . Alert | -11 -10 ------- Run | Yrd Mat Maximum Alert Level . | . . Low Security (%) 100 | 100 100 Level 1 . | . . Level 2 . | . . Level 3 . | . . Level 4 . | . . Level 5 . | . . High Security . | . . Max Security . | . . Peak Influence 153 | 10 153 Initial . | . . Average 22 | 1 34 Influence Increases 349 | 45 304 Destroy 0b10 Robot/C 160 | . 160 Destroy 0b10 Robot/NC 65 | 45 20 Destroy Leader 44 | . 44 Disable Machine 45 | . 45 Destroy Structure 35 | . 35 Influence Decreases 216 | 45 171 Time Decay 146 | 45 101 Lost Part 70 | . 70 Squads Dispatched 1 | . 1 Investigation . | . . Extermination . | . . Reinforcement 1 | . 1 Assault . | . . Garrison . | . . Intercept . | . . Searches Triggered . | . . Construction Impeded . | . . Haulers Reinforced . | . . Active Scanning Responses . | . . Cargo Convoy Interrupts . | . . Stealth | -11 -10 --------- Run | Yrd Mat Distress Signals 2 | . 2 Communications Jammed . | . . Distress Signals . | . . Times Spotted 15 | . 15 Peak Tracking Total 7 | . 7 Tactical Retreats . | . . Traps | -11 -10 ------- Run | Yrd Mat Traps Triggered . | . . Indirectly . | . . Trap Hack Attempts . | . . Triggered . | . . Disarmed . | . . Reprogrammed . | . . Reused . | . . Traps Extracted . | . . Installed . | . . Triggered . | . . Machines | -11 -10 ---------- Run | Yrd Mat Machines Disabled 3 | . 3 Max in Single Turn 2 | . 2 Machines Repaired . | . . Machines Dismantled . | . . Machines Sabotaged . | . . Overloaded Fab Kills . | . . Hacking | -11 -10 --------- Run | Yrd Mat Machines Accessed . | . . Terminals . | . . Fabricators . | . . Repair Stations . | . . Recycling Units . | . . Scanalyzers . | . . Garrison Access . | . . Total Hacks . | . . Successful . | . . Failed . | . . Catastrophic . | . . Database Lockouts . | . . Manual . | . . Terminals . | . . Fabricators . | . . Repair Stations . | . . Recycling Units . | . . Scanalyzers . | . . Garrison Access . | . . Terminal Hacks . | . . Fabricator Hacks . | . . Repair Station Hacks . | . . Recycling Unit Hacks . | . . Scanalyzer . | . . Garrison Access Hacks . | . . Unauthorized Hacks . | . . Terminals . | . . Fabricators . | . . Repair Stations . | . . Recycling Units . | . . Scanalyzers . | . . Garrison Access . | . . Data Cores Recovered . | . . Used . | . . Hacking Detections . | . . Full Trace Events . | . . Feedback Events . | . . Feedback Blocked . | . . Robot Schematics Acquired . | . . Robots Built . | . . Authchips . | . . Time . | . . Total Robot Build Rating . | . . Part Schematics Acquired . | . . Parts Built . | . . Authchips . | . . Time . | . . Total Part Build Rating . | . . Part Studies Acquired . | . . Parts Repaired . | . . Time . | . . Parts Recycled . | . . Recycled Matter . | . . Retrieved Matter . | . . Retrieved Components . | . . Parts Scanalyzed . | . . Part Schematics Acquired . | . . Parts Damaged . | . . Bothacking | -11 -10 ------------ Run | Yrd Mat Used RIF Installer . | . . Robots Hacked . | . . Non-combat . | . . Combat . | . . Robot Hacks Applied . | . . Relay Couplers Released . | . . Fabnet Peak Effective % . | . . Robots Rewired . | . . Allies Hacked . | . . Hacks Repelled . | . . Allies | -11 -10 -------- Run | Yrd Mat Total Allies . | . . Largest Group . | . . Highest-Rated Group . | . . Highest-Rated Ally . | . . Total Orders . | . . Ally Attacks . | . . Total Damage . | . . Kills . | . . Allies Corrupted . | . . Allies Melted . | . . Intel | -11 -10 ------- Run | Yrd Mat Active Infowar (turns) 628 | 186 442 Optics 140 | . 140 Seismic 488 | 186 302 Robot Analysis Total . | . . Derelict Logs Recovered . | . . Drone Launches . | . . Drone Recoveries . | . . Exploration | -11 -10 ------------- Run | Yrd Mat Turns Passed 720 | 270 450 Spaces Moved 299 | 120 179 Core 13 | 10 3 Treads 286 | 110 176 Legs . | . . Wheels . | . . Hover . | . . Flight . | . . Fastest Speed 50 | 50 150 Average Speed 158 | 150 163 Slowest Speed 350 | 160 350 Overloaded Moves . | . . Propulsion Burnouts . | . . Robots Hopped . | . . Potential Cave-ins . | . . Cave-ins Triggered . | . . Exploration Rate (%) 19 | 6 32 Regions Visited 1 Branch Regions . Pre-discovered Areas . | . . Known Exits Taken . | . . Unknown Exits Taken 1 | 1 . Scrap Searched . | . . Spaces Dug . | . . Terrain Destroyed 35 | . 35 Melee . | . . Projectile . | . . AOE 35 | . 35 Terrain Rammed . | . . Walls Destroyed . | . . Machines Disabled . | . . Actions | -11 -10 --------- Run | Yrd Mat Total 415 | 158 257 Wait 11 | . 11 Move 298 | 119 179 Hop . | . . Pick Up 11 | 4 7 Fast Attach 11 | 7 4 Attach 3 | . 3 Detach . | . . Swap 1 | . 1 Drop 2 | 1 1 Fire 77 | 27 50 Melee . | . . Ram . | . . Kick . | . . Crush 1 | . 1 Escape Stasis . | . . Rewire . | . . Trap . | . . Miscellaneous . | . . Route ------- -11/Scrapyard -10/Materials History --------- Turn | Location | Event 26 | -11/Scrapyard | Discovered new exit (range 16) 271 | -11/Scrapyard | Entered Materials 310 | -10/Materials | Build established: Mutant 635 | -10/Materials | Core integrity fell below 50% 665 | -10/Materials | Lost 6 parts (1p2n1u2w) 713 | -10/Materials | Core integrity fell below 20% 721 | -10/Materials | Destroyed by G-34 Mercenary with Small Laser Last Messages --------------- (Destroy). 00691_ Destroyed Aluminum Leg. 00692_ U-05 Engineer builds a Door. 00693_ W-16 Scout sends out distress signal. 00697_ U-05 Engineer lays Concrete. 00700_ R-06 Scavenger collects Sml. Storage Unit. 00701_ U-05 Engineer lays Concrete. 00705_ G-47 Trooper destroyed. 00707_ R-06 Scavenger collects Lgt. Nuclear Core. 00708_ Lgt. Treads destroyed. 00710_ Ion Engine destroyed. 00711_ G-34 Mercenary destroyed. 00711_ R-06 Scavenger collects Imp. Heat Sink. 00712_ Sml. Laser destroyed. 00714_ K-01 Serf collects debris. 00716_ Lgt. Assault Rifle destroyed. 00718_ K-01 Serf collects debris. 00719_ Acquired Sml. Laser. Map ----- +----------------------------------------------------+ | ???????????????????#+########## # """ """ ## """ | | ?????????????????? # ## """ | | ?????????????????? # #T | | ?????????????????? # ## | | ??????????????????# ######## %+! ## | | ???????????????????? ??####### %#############+## | | ??????????????????# ?# / # % | | ??????????????????# ## # | | ??????????????????# #" ################ | | ??????????????????# #" !##?????????????# | | ??????????????????# # !! #?????????????# | | ??????????????????# T # #?????????????# | | ??????????????????#tt ##????????????# | | ??????????????????# ###??????????# | | ??????????????????# # //#??????????# | | ??????????????????# /#??????????# | | ??????????????????# # = !#??????????# | | ??????????????????# # !!#??????????# | | ??????????????????# ####+###% ==#??????????? | | ??????????????????# ^ ==#??????????? | | ??????????????????# # ###??????????? | | ??????????????????# !! ###????????????? | | ????????????????### ! ########??????????????? | | ????????????????#"" k #?????????????????????? | | ????????????????#"T #?????????????????????? | | ????????????????#"" !! @ #?????????????????????? | | ????????????????### !w! %#?????????????????????? | | ??????????????????# !!gg=##########????????????? | | ??????????????????# ????? | | ??????????????????#o ????? | | ??????????????????# ????? | | ??????????????????# ###################??????? | | ??????????????????# ##?????????????????????????? | | ??????????????????# ???????????????????????????? | | ??????????????????# ???????????????????????????? | | ??????????????????# ????????????????????????????? | | ?????????????????? ????????????????????????????? | | ????????????????? ????????????????????????????? | | ????????????????"T" ?????????????????????????????? | | ???????????????? ?????????????????????????????? | | ?????????????????? ??????????????????????????????? | | ?????????????????????????????????????????????????? | | ?????????????????????????????????????????????????? | | ?????????????????????????????????????????????????? | | ?????????????????????????????????????????????????? | | ?????????????????????????????????????????????????? | | ?????????????????????????????????????????????????? | | ?????????????????????????????????????????????????? | | ?????????????????????????????????????????????????? | | ?????????????????????????????????????????????????? | +----------------------------------------------------+ Best States ------------- Heat Dissipation 25 Energy Generation 10 Energy Capacity 250 Matter Stores 300 Matter Capacity 300 Sight Range 18 Terrain Scan Density 10 Evasion (%) 50 Recoil Reduction 2 Item Schematics ----------------- None Robot Schematics ------------------ None Fabricated ------------ Nothing Repaired ---------- Nothing Studied --------- None Alien Tech Used ----------------- None Achievements -------------- None Challenges ------------ None Game ------ Seed StasisWeightCasing Manual? 0 Play Time 00:06:42 Cumulative 157.4 hours Start 2026.08.14 @ 09:08:21 End 2026.08.14 @ 09:12:19 Sessions 1 Manual Loads 0 Difficulty Rogue Special Mode None Game No. 317 Rogue 317 Adventurer 0 Explorer 0 Win Type - Total 2 Types 2/0/0/0/0/0/0/0/0/0 Lore% 57 Gallery% 57 Achievement% 45 Wizard Run 0 Options --------- Layout 2 ASCII 0 Keyboard 1 Movement Arrows Keybinds 0 Fullscreen 1 Font 24/Smallcaps Map View 50x44 Zoom Use 0% Tactical HUD 1 Map Filters NONE Filters NONE Steam 1 RUN: 049f3628-77b1-486c-b892-8e3e5d021f28